Cogmind - Beta 16 @@@ ROGUE MODE // 2025.10.22 @ 00:34:38 Player: Naughtyusername Result: Destroyed by as-26308 with Assembled Blade Performance ------------- Evolutions (0) 0 Regions Visited (2) 400 Robots Destroyed (17) 85 Value Destroyed (372) 372 Prototype IDs (3) 60 Alien Tech Used (0) 0 Bonus (0) 0 TOTAL SCORE: 917 Bonus ------- None Cogmind --------- Core Integrity 0/250 Matter 195/300 Energy 68/125 System Corruption 2% Temperature Cool (0) Movement Treading (160) Location -10/Mines Parts ------- > --- POWER (1) -------- Light Ion Engine > --- PROPULSION (2) --- Improved Treads Improved Treads > --- UTILITY (2) ------ High-capacity Storage Unit Seismic Detector > --- WEAPON (2) ------- (None) > --- INVENTORY (20) --- Light Nuclear Core Improved Treads Heat Sink Heat Sink Improved Heat Sink Huge Storage Unit Light Armor Plating Small Laser Particle Gun Light Assault Rifle Plasma Cutter Peak State ------------ > --- POWER ------------ Light Ion Engine > --- PROPULSION ------- Light Treads Improved Treads > --- UTILITY ---------- Heat Sink High-capacity Storage Unit > --- WEAPON ----------- Small Laser Particle Gun > --- INVENTORY -------- Light Ion Engine Light Nuclear Core Improved Treads Improved Treads Improved Treads Heat Sink Improved Heat Sink Huge Storage Unit Seismic Detector Light Armor Plating Small Laser Small Laser Light Assault Rifle Grenade Launcher Mining Laser Plasma Cutter [Rating: 11] Favorites ----------- Power Light Ion Engine Engine Light Ion Engine Propulsion Light Treads Treads Light Treads Utility High-capacity Storage Unit Device Heat Sink Storage High-capacity Storage Unit Weapon Small Laser Energy Gun Small Laser Launcher Grenade Launcher Special Weapon Mining Laser Build | -11 -10 -10 ------- Run | Yrd Mat Min Slots Evolved . | . . . Power . | . . . Propulsion . | . . . Utility . | . . . Weapon . | . . . Parts Attached 20 | 7 7 6 Power 2 | 1 . 1 Engine 2 | 1 . 1 Core . | . . . Reactor . | . . . Propulsion 5 | 2 1 2 Treads 5 | 2 1 2 Leg . | . . . Wheel . | . . . Hover . | . . . Flight . | . . . Utility 5 | 2 3 . Device 3 | 1 2 . Storage 2 | 1 1 . Processor . | . . . Hackware . | . . . Protection . | . . . Artifact . | . . . Weapon 8 | 2 3 3 Energy Gun 4 | 2 2 . Energy Cannon . | . . . Ballistic Gun . | . . . Ballistic Cannon . | . . . Launcher 2 | . 1 1 Special Weapon 2 | . . 2 Impact Weapon . | . . . Slashing Weapon . | . . . Piercing Weapon . | . . . Special Melee Weapon . | . . . Unidentified Prototypes . | . . . Parts Lost 11 | . 3 8 Power 1 | . . 1 Propulsion 3 | . 1 2 Utility 1 | . . 1 Weapon 6 | . 2 4 Highest Loss Streak 8 | . 1 8 To Critical Strikes 1 | . . 1 Average Backups 11 | 1 12 15 Power 1 | . 1 1 Propulsion 1 | . 1 2 Utility 3 | . 3 6 Weapon 4 | . 4 4 Tool/Special . | . . . Unused Backups 8 | . . 8 Power 1 | . . 1 Propulsion 1 | . . 1 Utility 4 | . . 4 Weapon 2 | . . 2 Tool/Special . | . . . Average Slot Usage (%) 94 | . 94 74 Engine 13 | . 14 8 Treads 27 | . 28 16 Device 12 | . 12 8 Storage 14 | . 14 14 Energy Gun 23 | . 24 14 Peak Build Rating 11 | 7 11 11 Average Rating 8 | 6 8 8 On Entrance 6 | . 7 11 Avg Prop Armor Cover (%) . | . . . Naked Turns . | . . . Heaviest Build 48 | 12 48 48 Greatest Support 43 | 40 43 43 Greatest Overweight (x) 1 | . 1 1 Average Overweight (x) . | . . 1 Largest Inventory Capacity 20 | 8 20 20 Average Capacity 18 | 7 19 20 Most Carried 18 | 3 18 17 Average Carried 11 | 1 12 15 Final Capacity 20 | 8 20 20 Final Carried 17 | 3 17 11 Class Distribution -------------------- 100% | Mutant Dominant Class ---------------- Mutant | -10/Materials Mutant | -10/Mines Resources | -11 -10 -10 ----------- Run | Yrd Mat Min Matter Collected 399 | 270 126 3 Remotely . | . . . Salvage Created 501 | 47 428 26 Parts 39 | 9 30 . Haulers Intercepted 1 | . 1 . Recyclers Shooed . | . . . Parts Field Recycled . | . . . Retrieved Matter . | . . . Parts Self-Destructed . | . . . Prevented . | . . . Parts Restored . | . . . Kills | -11 -10 -10 ------- Run | Yrd Mat Min Combat Hostiles Destroyed 19 | . 11 8 Guns 9 | . 9 . AOE 10 | . 2 8 Classes Destroyed 7 | 1 5 1 Builder 1 | . 1 . Tunneler 3 | 3 . . Hauler 1 | . 1 . Watcher 1 | . 1 . Swarmer 3 | . 3 . Grunt 8 | . 8 . Assembled 8 | . . 8 Best Kill Streak 8 | 1 4 8 Combat Bots Only 8 | . 4 8 Max Kills in Single Turn 2 | 1 1 2 Gunslinging . | . . . Exploded 2 | . 1 2 Melee . | . . . Uniques/NPCs Destroyed . | . . . Combat | -11 -10 -10 -------- Run | Yrd Mat Min Hostile Shots Fired 116 | . 64 52 Missed 28 | . 11 17 Hits 88 | . 53 35 Melee 4 | . . 4 Projectile 84 | . 53 31 Critical Strikes 2 | . . 2 Damage Taken 1273 | . 618 655 Core 280 | . 72 208 Absorbed by Shields . | . . . Core Remaining (%) 100 | 100 . . Volleys Fired 59 | 5 44 10 Largest 2 | 2 2 1 Hottest 105 | 90 105 100 Shots Fired 94 | 10 74 10 Gun 82 | 10 71 1 Cannon . | . . . Launcher 9 | . 3 6 Special 3 | . . 3 Kinetic . | . . . Thermal 85 | 10 71 4 Explosive 9 | . 3 6 Electromagnetic . | . . . Robot Hit Streak 12 | 2 12 7 Robot Miss Streak 6 | 1 6 1 Penetration Max . | . . . Secondary Targets . | . . . Shots Hit Robots 52 | 5 43 4 Core Hits 39 | 3 22 14 Critical Kills . | . . . Critical Parts Destroyed . | . . . Critical Strikes 1 | . 1 . Burn 1 | . 1 . Melee Attacks . | . . . Impact . | . . . Slashing . | . . . Piercing . | . . . Sneak Attacks . | . . . Combat Hostiles . | . . . Follow-up Attacks . | . . . Damage Inflicted 1315 | 57 818 440 Guns 649 | 57 580 12 Cannons . | . . . Explosions 615 | . 187 428 Melee . | . . . Ramming 51 | . 51 . Kinetic . | . . . Thermal 649 | 57 580 12 Explosive 615 | . 187 428 Electromagnetic . | . . . Impact . | . . . Slashing . | . . . Piercing . | . . . Highest Corruption 2 | . 1 2 Average Corruption 1 | . 1 1 Corruption Purged . | . . . Corruption Blocked . | . . . Effects 20 | . 19 1 Message Errors 6 | . 6 . Matter Fused 3 | . 3 . Heat Flow Errors 2 | . 2 . Energy Discharges 4 | . 4 . Parts Fused 1 | . 1 . Data Loss (minor) 3 | . 2 1 Weapon Failures 1 | . 1 . Overload Shots . | . . . Overflow Damage 4 | . 3 1 Projectiles . | . . . Explosions 4 | . 3 1 Melee . | . . . Knockbacks 1 | . 1 . Impact 1 | . 1 . Kinetic . | . . . Secondary . | . . . Self-Inflicted Damage 65 | . . 65 Shots 2 | . . 2 Rammed 6 | . 6 . Targets Rammed 7 | . 7 . Kicked . | . . . Crushed 1 | . 1 . Highest Temperature 285 | 60 285 . Average Temperature 80 | 28 88 . Received Heat Transfer 279 | . 279 . Siege Activations . | . . . Martial Activations . | . . . Shielding Activations . | . . . Robots Disrupted . | . . . Combat Hostiles . | . . . Robots Corrupted . | . . . Combat Hostiles . | . . . Parts Fried . | . . . Impact Corruptions . | . . . Robots Melted . | . . . Combat Hostiles . | . . . Parts Melted 2 | . 2 . Heat Transferred 1625 | 149 1451 25 Parts Sabotaged . | . . . Parts Stolen . | . . . Parts Stripped . | . . . Power Chain Reactions . | . . . Alert | -11 -10 -10 ------- Run | Yrd Mat Min Maximum Alert Level . | . . . Low Security (%) 100 | 100 100 100 Level 1 . | . . . Level 2 . | . . . Level 3 . | . . . Level 4 . | . . . Level 5 . | . . . High Security . | . . . Max Security . | . . . Peak Influence 102 | 5 102 14 Initial 9 | . . 9 Average 20 | . 22 4 Influence Increases 396 | 15 354 27 Destroy 0b10 Robot/C 220 | . 220 . Destroy 0b10 Robot/NC 30 | 15 15 . Destroy Leader 54 | . 54 . Successful Hack 32 | . 32 . Destroy Structure 45 | . 18 27 Partial Spotted 15 | . 15 . Influence Decreases 395 | 15 329 51 Entered New Map 16 | . . 16 Time Decay 330 | 15 309 6 Lost Part 49 | . 20 29 Squads Dispatched 2 | . 2 . Investigation 1 | . 1 . Extermination . | . . . Reinforcement 1 | . 1 . Assault . | . . . Garrison . | . . . Intercept . | . . . Searches Triggered . | . . . Construction Impeded . | . . . Haulers Reinforced . | . . . Active Scanning Responses . | . . . Cargo Convoy Interrupts . | . . . Stealth | -11 -10 -10 --------- Run | Yrd Mat Min Distress Signals 1 | . 1 . Communications Jammed . | . . . Distress Signals . | . . . Times Spotted 38 | . 22 16 Peak Tracking Total 13 | . 5 13 Tactical Retreats 2 | . . 2 Traps | -11 -10 -10 ------- Run | Yrd Mat Min Traps Triggered 2 | . 2 . Indirectly . | . . . Trap Hack Attempts . | . . . Triggered . | . . . Disarmed . | . . . Reprogrammed . | . . . Reused . | . . . Traps Extracted . | . . . Installed . | . . . Triggered . | . . . Machines | -11 -10 -10 ---------- Run | Yrd Mat Min Machines Disabled . | . . . Max in Single Turn . | . . . Machines Repaired . | . . . Machines Dismantled . | . . . Machines Sabotaged . | . . . Overloaded Fab Kills . | . . . Hacking | -11 -10 -10 --------- Run | Yrd Mat Min Machines Accessed 7 | . 7 . Terminals 5 | . 5 . Fabricators . | . . . Repair Stations . | . . . Recycling Units 2 | . 2 . Scanalyzers . | . . . Garrison Access . | . . . Total Hacks 30 | . 30 . Successful 17 | . 17 . Failed 13 | . 13 . Catastrophic 1 | . 1 . Database Lockouts . | . . . Manual 22 | . 22 . Terminals 25 | . 25 . Fabricators . | . . . Repair Stations . | . . . Recycling Units 5 | . 5 . Scanalyzers . | . . . Garrison Access . | . . . Terminal Hacks 6 | . 6 . Robot Analysis 2 | . 2 . Prototype ID Bank 2 | . 2 . Branch Access Points 1 | . 1 . Terminal Index 1 | . 1 . Fabricator Hacks . | . . . Repair Station Hacks . | . . . Recycling Unit Hacks 1 | . 1 . Retrieve Components 1 | . 1 . Scanalyzer . | . . . Garrison Access Hacks . | . . . Unauthorized Hacks 10 | . 10 . Terminals 9 | . 9 . Track 1 | . 1 . Botnet 1 | . 1 . Operators 2 | . 2 . Skim 5 | . 5 . Fabricators . | . . . Repair Stations . | . . . Recycling Units 1 | . 1 . Recyclers 1 | . 1 . Scanalyzers . | . . . Garrison Access . | . . . Data Cores Recovered . | . . . Used . | . . . Hacking Detections 6 | . 6 . Full Trace Events . | . . . Feedback Events . | . . . Feedback Blocked . | . . . Robot Schematics Acquired . | . . . Robots Built . | . . . Authchips . | . . . Time . | . . . Total Robot Build Rating . | . . . Part Schematics Acquired . | . . . Parts Built . | . . . Authchips . | . . . Time . | . . . Total Part Build Rating . | . . . Part Studies Acquired . | . . . Parts Repaired . | . . . Time . | . . . Parts Recycled . | . . . Recycled Matter . | . . . Retrieved Matter . | . . . Retrieved Components 1 | . 1 . Parts Scanalyzed . | . . . Part Schematics Acquired . | . . . Parts Damaged . | . . . Bothacking | -11 -10 -10 ------------ Run | Yrd Mat Min Used RIF Installer . | . . . Robots Hacked . | . . . Non-combat . | . . . Combat . | . . . Robot Hacks Applied . | . . . Relay Couplers Released . | . . . Fabnet Peak Effective % . | . . . Robots Rewired . | . . . Allies Hacked . | . . . Hacks Repelled . | . . . Allies | -11 -10 -10 -------- Run | Yrd Mat Min Total Allies . | . . . Largest Group . | . . . Highest-Rated Group . | . . . Highest-Rated Ally . | . . . Total Orders . | . . . Ally Attacks . | . . . Total Damage . | . . . Kills . | . . . Allies Corrupted . | . . . Allies Melted . | . . . Intel | -11 -10 -10 ------- Run | Yrd Mat Min Active Infowar (turns) 486 | 133 351 2 Seismic 486 | 133 351 2 Robot Analysis Total 2 | . 2 . Derelict Logs Recovered . | . . . Drone Launches . | . . . Drone Recoveries . | . . . Exploration | -11 -10 -10 ------------- Run | Yrd Mat Min Turns Passed 1893 | 198 1651 44 Spaces Moved 735 | 108 622 5 Core 2 | 2 . . Treads 733 | 106 622 5 Legs . | . . . Wheels . | . . . Hover . | . . . Flight . | . . . Fastest Speed 50 | 50 160 240 Average Speed 226 | 157 237 240 Slowest Speed 240 | 160 240 240 Overloaded Moves . | . . . Propulsion Burnouts . | . . . Robots Hopped . | . . . Potential Cave-ins . | . . . Cave-ins Triggered . | . . . Exploration Rate (%) 35 | 4 97 6 Regions Visited 2 Branch Regions 1 Pre-discovered Areas 3 | . 3 . Known Exits Taken 1 | . 1 . Unknown Exits Taken 1 | 1 . . Scrap Searched . | . . . Spaces Dug 6 | . . 6 Terrain Destroyed 52 | . 18 34 Melee . | . . . Projectile 1 | . . 1 AOE 51 | . 18 33 Terrain Rammed . | . . . Walls Destroyed . | . . . Machines Disabled . | . . . Actions | -11 -10 -10 --------- Run | Yrd Mat Min Total 853 | 122 708 23 Wait 10 | . 10 . Move 733 | 107 621 5 Hop . | . . . Pick Up 18 | 3 15 . Fast Attach 8 | 7 1 . Attach 9 | . 3 6 Detach 1 | . 1 . Swap 7 | . 5 2 Drop 1 | . 1 . Fire 59 | 5 44 10 Melee . | . . . Ram . | . . . Kick . | . . . Crush 7 | . 7 . Escape Stasis . | . . . Rewire . | . . . Trap . | . . . Miscellaneous . | . . . Route ------- -11/Scrapyard -10/Materials (discovered 5 exits: [*Mat x3] / *Min / [*Sub]) -10/Mines History --------- Turn | Location | Event 15 | -11/Scrapyard | Discovered new exit (range 15) 199 | -11/Scrapyard | Entered Materials 309 | -10/Materials | Build established: Mutant 383 | -10/Materials | Identified exit to Mines 435 | -10/Materials | Discovered new exit (range 4) 905 | -10/Materials | Discovered new exit (range 4) 1413 | -10/Materials | Learned location of Mines (-10) 1618 | -10/Materials | Discovered new exit (range 9) 1623 | -10/Materials | Learned Storage trap positions 1638 | -10/Materials | Discovered new exit (range 16) 1797 | -10/Materials | Learned Storage stockpile data 1850 | -10/Materials | Entered Mines 1851 | -10/Mines | Assembled infested the area 1875 | -10/Mines | Core integrity fell below 50% 1882 | -10/Mines | Core integrity fell below 20% 1894 | -10/Mines | Destroyed by as-26308 with Assembled Blade Last Messages --------------- 01868_ Lgt. Ion Engine destroyed. 01871_ Heat Sink destroyed. 01871_ System corrupted by crushing effect (+1). 01872_ Mining Laser destroyed. 01874_ Grenade Launcher destroyed. 01877_ as-99315 destroyed. 01877_ as-65690 destroyed. 01879_ as-63686 destroyed. 01881_ Sml. Laser destroyed. 01883_ Acquired 3 matter. 01884_ Critical hit (Destroy). 01884_ Imp. Treads destroyed. 01885_ as-64485 destroyed. 01885_ as-36185 destroyed. 01885_ as-87877 destroyed. 01887_ as-41595 destroyed. 01890_ The unstable cave ceiling collapses. 01893_ Grenade Launcher destroyed. 01893_ Destroyed Grenade Launcher. 01893_ as-06642 destroyed. Map ----- +----------------------------------------------------+ | | | | | | | | | | | | | | | | | ?????????????????????????????????? | | ?????????????????????????????????? | | ?????????????????????????????????? | | ?????????????????????????????????? | | ?????????????????????????????????? | | ?????????????????????????????????? | | ?????????????????????????????????? | | ?????????????????????????????????? | | ?????????????????????????????????? | | ??????????????????#??????????????? | | ?????????????????## ?????????????? | | ?????????????????# ????????????? | | ????????????????### % ???????????? | | ????????????????# #####??????? | | ????????????###### ###????? | | ????????????# #????? | | ?????????? #????? | | ?????????? a a@ #????? | | ????????? #????? | | ????????? #???? | | ????????? ###???? | | ??????????? #### ###?????? | | ???????????? ?????## ##???????? | | ????????????????????####?????????? | | ?????????????????????????????????? | | ?????????????????????????????????? | | ?????????????????????????????????? | | ?????????????????????????????????? | | ?????????????????????????????????? | | ?????????????????????????????????? | | ?????????????????????????????????? | | ?????????????????????????????????? | | ?????????????????????????????????? | | ?????????????????????????????????? | | ?????????????????????????????????? | | ?????????????????????????????????? | | ?????????????????????????????????? | | ?????????????????????????????????? | | ?????????????????????????????????? | | ?????????????????????????????????? | | ?????????????????????????????????? | | ?????????????????????????????????? | +----------------------------------------------------+ Best States ------------- Heat Dissipation 35 Energy Generation 10 Energy Capacity 125 Matter Stores 300 Matter Capacity 300 Sight Range 16 Terrain Scan Density 10 Evasion (%) 40 Recoil Reduction 2 Item Schematics ----------------- None Robot Schematics ------------------ None Fabricated ------------ Nothing Repaired ---------- Nothing Studied --------- None Alien Tech Used ----------------- None Achievements -------------- None Challenges ------------ None Game ------ Seed TerrainCoordinationBallwheel Manual? 0 Play Time 00:06:35 Cumulative 418.7 hours Start 2025.10.22 @ 00:28:44 End 2025.10.22 @ 00:34:38 Sessions 1 Manual Loads 0 Difficulty Rogue Special Mode None Game No. 224 Rogue 224 Adventurer 0 Explorer 0 Win Type - Total 18 Types 10/1/5/1/0/0/0/1/0/0 Lore% 89 Gallery% 83 Achievement% 75 Wizard Run 0 Options --------- Layout 2 ASCII 0 Keyboard 1 Movement Vi Keybinds 0 Fullscreen 1 Font 28/Cog Map View 50x52 Zoom Use 0% Tactical HUD 1 Map Filters NONE Filters NONE Steam 1 RUN: 7e47c4b1-9273-48d5-aae3-9d0b66ec6709